lending/lending_fUSD_20250516
["ID","MTS","AMOUNT","RATE_DAILY","PERIOD"]
[361274282,1747413031645,-500.0,0.00013999,2]
[361274283,1747413031655,-500.0,0.00013999,2]
[361274284,1747413031665,-500.0,0.00013999,2]
[361274285,1747413031674,-500.0,0.00013999,2]
[361274286,1747413031683,-500.0,0.00013999,2]
[361274287,1747413031693,-500.0,0.00013999,2]
[361274288,1747413031702,-500.0,0.00013999,2]
[361274289,1747413031711,-500.0,0.00013999,2]
[361274290,1747413031720,-500.0,0.00013999,2]
[361274291,1747413031730,-500.0,0.00013999,2]
[361274292,1747413031740,-500.0,0.00013999,2]
[361274293,1747413031750,-500.0,0.00013999,2]
[361274294,1747413031761,-500.0,0.00013999,2]
[361274295,1747413031771,-500.0,0.00013999,2]
[361274296,1747413031780,-500.0,0.00013999,2]
[361274297,1747413031790,-441.92388583,0.00013999,2]
[361274298,1747413031799,-500.0,0.00013999,2]
[361274299,1747413031809,-500.0,0.00013999,2]
[361274300,1747413031818,-500.0,0.00013999,2]
[361274301,1747413031827,-500.0,0.00013999,2]
[361274302,1747413031837,-500.0,0.00013999,2]
[361274303,1747413031847,-500.0,0.00013999,2]
[361274304,1747413031856,-500.0,0.00013999,2]
[361274305,1747413031865,-27052.67567063,0.00014,2]
[361274306,1747413031898,-1040.2,0.00014,2]
[361274307,1747413031910,-4218.84122,0.00014,2]
[361274308,1747413031939,-47147.1,0.00014,2]
[361274309,1747413031968,-501.36406778,0.00014,2]
[361274310,1747413032001,-3457.43689806,0.00014,2]
[361274311,1747413032018,-805.61696077,0.00014,2]
[361274312,1747413032029,-3027.1347188,0.00014,2]
[361274313,1747413032059,-429.03648726,0.00014,2]
[361274317,1747413035107,801.82,0.00027397,120]
[361274321,1747413037433,-438.75999884,0.00014,2]
[361274327,1747413037544,-522.27499128,0.00014,2]
[361274328,1747413037649,-1630.1785551,0.00014,2]
[361274329,1747413037660,-37827.745096,0.00014,2]
[361274330,1747413037702,-620.085039,0.00014,2]
[361274331,1747413037714,-109240.74925617,0.00014,2]
[361274354,1747413039600,-3754.61069315,0.00014,2]
[361274355,1747413039612,-12884.22461821,0.00014,2]
[361274356,1747413039624,-251445.25785479,0.00014,2]
[361274357,1747413039634,-500.61020259,0.00014,2]
[361274358,1747413039643,-501.05441888,0.00014,2]
[361274359,1747413039652,-333.72137723,0.000147,2]
[361274360,1747413039661,-158.49,0.00014904,2]
[361274361,1747413039671,-178.05,0.00014977,2]
[361274362,1747413039680,-150.0,0.00015073,7]
[361274363,1747413039689,-255.0,0.00015118,2]
[361274364,1747413039698,-248.0,0.00015192,2]
[361274365,1747413039707,-420.0,0.00015336,2]
[361274366,1747413039718,-420.0,0.00015336,2]
[361274367,1747413039727,-200.0,0.0001534,2]
[361274368,1747413039736,-4134.37,0.0001534,2]
[361274369,1747413039745,-543.9,0.00015455,2]
[361274370,1747413039754,-23900.0,0.000155,2]
[361274371,1747413039763,-1000.0,0.000155,2]
[361274372,1747413039773,-796.59,0.000155,2]
[361274373,1747413039782,-2112.33,0.00015522,2]
[361274374,1747413039791,-500.0,0.00015523,2]
[361274375,1747413039800,-250.0,0.00015569,2]
[361274376,1747413039809,-170.01,0.00015616,2]
[361274377,1747413039818,-167.03,0.0001567,2]
[361274378,1747413039827,-507.52,0.00015682,2]
[361274379,1747413039837,-595.28,0.000157,2]
[361274380,1747413039846,-595.28,0.000157,2]
[361274381,1747413039855,-595.28,0.000157,2]
[361274382,1747413039864,-595.28,0.000157,2]
[361274383,1747413039874,-595.28,0.000157,2]
[361274384,1747413039883,-400.0,0.000157,5]
[361274385,1747413039892,-248.0,0.00015761,2]
[361274386,1747413039901,-900.0,0.000158,5]
[361274387,1747413039910,-1400.0,0.000159,5]
[361274388,1747413039919,-159.82055854,0.00016078,2]
[361274389,1747413039928,-151.0,0.0001619,2]
[361274390,1747413039937,-151.0,0.0001619,2]
[361274391,1747413039946,-151.0,0.0001619,2]
[361274392,1747413039955,-599.60298507,0.0001619,2]
[361274393,1747413039964,-207.4,0.0001619,2]
[361274394,1747413039973,-668.65185757,0.0001619,2]
[361274395,1747413039982,-9294.33,0.000162,2]
[361274396,1747413039991,-1065.15,0.000162,2]
[361274397,1747413040000,-150.99,0.000162,2]
[361274398,1747413040009,-999.99,0.000162,2]
[361274399,1747413040020,-376.37,0.000162,2]
[361274400,1747413040029,-14012.73,0.000162,2]
[361274401,1747413040039,-6950.82,0.000162,2]
[361274402,1747413040048,-500.0,0.00016238,2]
[361274403,1747413040058,-706.1,0.000163,2]
[361274404,1747413040067,-433.0,0.00016322,2]
[361274405,1747413040076,-248.0,0.00016331,2]
[361274406,1747413040086,-3357.52102391,0.00016338,2]
[361274408,1747413040095,-161.91649745,0.00016338,2]
[361274410,1747413040104,-1156.81977269,0.00016338,2]
[361274412,1747413040113,-1000.0,0.00016338,2]
[361274414,1747413040123,-17688.3246,0.00016338,2]
[361274416,1747413040132,-196.52801519,0.00016354,2]
[361274418,1747413040141,-6232.58310673,0.00016398,2]
[361274420,1747413040152,-4318.2,0.00016404,2]
[361274422,1747413040163,-4318.2,0.00016412,2]
[361274424,1747413040172,-697.369,0.00016423,2]
[361274426,1747413040181,-3357.52102382,0.00016429,2]
[361274428,1747413040190,-5505.81200314,0.00016431,2]
[361274430,1747413040200,-669.09272151,0.00016438,2]
[361274432,1747413040209,-181521.28714229,0.00016438,2]
[361274435,1747413040232,-465.08426725,0.00016438,2]
[361274440,1747413040271,-2536.5313342,0.00016438,2]
[361274444,1747413040297,-1717.26636972,0.00016438,2]
[361274446,1747413040308,-10317.72224546,0.00016438,2]
[361274448,1747413040320,-16480.22995195,0.00016438,2]
[361274450,1747413040329,-175.813229,0.00016438,2]
[361274452,1747413040338,-163.017857,0.00016438,2]
[361274454,1747413040347,-151.0,0.00016438,2]
[361274456,1747413040356,-151.0,0.00016438,2]
[361274458,1747413040366,-4601.20635807,0.00016438,2]
[361274461,1747413040378,-16384.20740305,0.00016438,2]
[361274463,1747413040387,-264.95815375,0.00016438,2]
[361274465,1747413040396,-157.925085,0.00016438,2]
[361274467,1747413040406,-151.0,0.00016438,2]
[361274469,1747413040415,-151.0,0.00016438,2]
[361274471,1747413040424,-158.19229,0.00016438,2]
[361274473,1747413040433,-159.827477,0.00016438,2]
[361274475,1747413040442,-209.936571,0.00016438,2]
[361274477,1747413040451,-402.98417717,0.00016438,2]
[361274479,1747413040460,-400.0,0.00016438,2]
[361274481,1747413040470,-400.0,0.00016438,2]
[361274483,1747413040479,-400.2415304,0.00016438,2]
[361274485,1747413040489,-409.52300334,0.00016438,2]
[361274487,1747413040498,-226.81293742,0.00016438,2]
[361274489,1747413040508,-402.87792765,0.00016438,2]
[361274491,1747413040518,-400.0,0.00016438,2]
[361274492,1747413040527,-400.85136309,0.00016438,2]
[361274494,1747413040536,-472.34351417,0.00016438,2]
[361274496,1747413040545,-151.0,0.00016438,2]
[361274498,1747413040555,-403.56880544,0.00016438,2]
[361274500,1747413040564,-534.30666332,0.00016438,2]
[361274502,1747413040573,-505.82718596,0.00016438,2]
[361274504,1747413040582,-159.20931,0.00016438,2]
[361274506,1747413040591,-487.23,0.00016438,2]
[361274508,1747413040601,-400.0,0.00016438,2]
[361274510,1747413040610,-400.0,0.00016438,2]
[361274513,1747413040620,-286.83344547,0.00016438,2]
[361274515,1747413040630,-1595.35,0.00016438,2]
[361274517,1747413040639,-400.0,0.00016438,2]
[361274519,1747413040648,-400.0,0.00016438,2]
[361274521,1747413040657,-400.0,0.00016438,2]
[361274522,1747413040666,-400.0,0.00016438,2]
[361274524,1747413040675,-694.72,0.00016438,2]
[361274526,1747413040684,-400.0,0.00016438,2]
[361274528,1747413040693,-151.0,0.00016438,2]
[361274530,1747413040703,-400.0,0.00016438,2]
[361274532,1747413040712,-400.0,0.00016438,2]
[361274534,1747413040721,-151.0,0.00016438,2]
[361274536,1747413040730,-400.0,0.00016438,2]
[361274538,1747413040740,-400.0,0.00016438,2]
[361274540,1747413040749,-400.0,0.00016438,2]
[361274542,1747413040759,-77.6249297,0.00016438,2]
[361274547,1747413040792,-322.3750703,0.00016438,2]
[361274549,1747413040802,-49.96541999,0.00016438,2]
[361274652,1747413042665,-350.03458001,0.00016438,2]
[361274653,1747413042674,-148.31533178,0.00016438,2]
[361274654,1747413042686,-251.68466822,0.00016438,2]
[361274655,1747413042695,-234.46431083,0.00016438,2]
[361274656,1747413042706,-298.54568917,0.00016438,2]
[361274657,1747413042715,-400.0,0.00016438,2]
[361274658,1747413042724,-5.49072327,0.00016438,2]
[361274659,1747413043012,-394.50927673,0.00016438,2]
[361274660,1747413043022,-400.0,0.00016438,2]
[361274661,1747413043030,-400.0,0.00016438,2]
[361274662,1747413043040,-400.0,0.00016438,2]
[361274663,1747413043049,-421.9,0.00016438,2]
[361274664,1747413043058,-497.96160501,0.00016438,2]
[361274665,1747413043069,-61.55839499,0.00016438,2]
[361274666,1747413043079,-400.0,0.00016438,2]
[361274667,1747413043088,-400.0,0.00016438,2]
[361274669,1747413043097,-400.0,0.00016438,2]
[361274671,1747413043106,-400.0,0.00016438,2]
[361274673,1747413043115,-400.0,0.00016438,2]
[361274674,1747413043125,-496.9,0.00016438,2]
[361274675,1747413043134,-400.0,0.00016438,2]
[361274676,1747413043144,-440.03,0.00016438,2]
[361274677,1747413043156,-183.32633634,0.00016438,2]
[361274678,1747413043165,-476.07,0.00016438,2]
[361274679,1747413043175,-400.0,0.00016438,2]
[361274680,1747413043184,-484.4,0.00016438,2]
[361274681,1747413043195,-400.0,0.00016438,2]
[361274682,1747413043204,-1436.13,0.00016438,2]
[361274683,1747413043214,-540.56,0.00016438,2]
[361274684,1747413043224,-400.0,0.00016438,2]
[361274685,1747413043234,-400.0,0.00016438,2]
[361274686,1747413043243,-409.64,0.00016438,2]
[361274687,1747413043253,-400.0,0.00016438,2]
[361274688,1747413043262,-400.0,0.00016438,2]
[361274689,1747413043276,-400.0,0.00016438,2]
[361274690,1747413043286,-400.0,0.00016438,2]
[361274691,1747413043296,-400.0,0.00016438,2]
[361274692,1747413043306,-400.0,0.00016438,2]
[361274693,1747413043315,-151.0,0.00016438,2]
[361274694,1747413043325,-648.31,0.00016438,2]
[361274695,1747413043334,-400.0,0.00016438,2]
[361274696,1747413043343,-474.00303892,0.00016438,2]
[361274697,1747413043353,-400.0,0.00016438,2]
[361274698,1747413043364,-437.93,0.00016438,2]
[361274699,1747413043374,-400.0,0.00016438,2]
[361274700,1747413043384,-400.0,0.00016438,2]
[361274701,1747413043393,-639.4,0.00016438,2]
[361274702,1747413043404,-400.0,0.00016438,2]
[361274703,1747413043414,-400.0,0.00016438,2]
[361274704,1747413043424,-400.0,0.00016438,2]
[361274705,1747413043433,-804.68,0.00016438,2]
[361274706,1747413043443,-400.0,0.00016438,2]
[361274707,1747413043453,-400.0,0.00016438,2]
[361274708,1747413043463,-554.22,0.00016438,2]
[361274709,1747413043472,-400.0,0.00016438,2]
[361274710,1747413043482,-400.0,0.00016438,2]
[361274711,1747413043492,-578.86,0.00016438,2]
[361274712,1747413043502,-587.26,0.00016438,2]
[361274713,1747413043512,-400.0,0.00016438,2]
[361274714,1747413043523,-12500.0,0.00016438,2]
[361274715,1747413043532,-400.0,0.00016438,2]
[361274716,1747413043542,-400.0,0.00016438,2]
[361274717,1747413043551,-151.0,0.00016438,2]
[361274718,1747413043561,-378.15,0.00016438,2]
[361274719,1747413043570,-400.0,0.00016438,2]
[361274720,1747413043579,-400.0,0.00016438,2]
[361274721,1747413043588,-400.0,0.00016438,2]
[361274722,1747413043598,-400.0,0.00016438,2]
[361274723,1747413043608,-400.0,0.00016438,2]
[361274724,1747413043617,-400.0,0.00016438,2]
[361274725,1747413043627,-152.646049,0.00016438,2]
[361274726,1747413043635,-400.0,0.00016438,2]
[361274727,1747413043644,-889.15,0.00016438,2]
[361274728,1747413043653,-539.97,0.00016438,2]
[361274729,1747413043662,-400.0,0.00016438,2]
[361274730,1747413043670,-400.0,0.00016438,2]
[361274731,1747413043679,-151.0,0.00016438,2]
[361274732,1747413043688,-400.0,0.00016438,2]
[361274733,1747413043698,-151.0,0.00016438,2]
[361274734,1747413043707,-400.0,0.00016438,2]
[361274735,1747413043717,-400.0,0.00016438,2]
[361274736,1747413043727,-400.0,0.00016438,2]
[361274737,1747413043736,-400.0,0.00016438,2]
[361274738,1747413043746,-748.19,0.00016438,2]
[361274739,1747413043755,-420.91,0.00016438,2]
[361274740,1747413043765,-400.0,0.00016438,2]
[361274741,1747413043774,-400.0,0.00016438,2]
[361274742,1747413043784,-400.0,0.00016438,2]
[361274743,1747413043794,-400.0,0.00016438,2]
[361274744,1747413043803,-400.0,0.00016438,2]
[361274745,1747413043812,-400.0,0.00016438,2]
[361274746,1747413043822,-514.82,0.00016438,2]
[361274747,1747413043831,-400.0,0.00016438,2]
[361274748,1747413043840,-400.0,0.00016438,2]
[361274749,1747413043849,-400.0,0.00016438,2]
[361274750,1747413043859,-400.0,0.00016438,2]
[361274751,1747413043868,-400.0,0.00016438,2]
[361274752,1747413043878,-510.38632454,0.00016438,2]
[361274753,1747413043887,-400.0,0.00016438,2]
[361274754,1747413043896,-400.0,0.00016438,2]
[361274755,1747413043906,-400.0,0.00016438,2]
[361274756,1747413043915,-400.0,0.00016438,2]
[361274757,1747413043924,-400.0,0.00016438,2]
[361274758,1747413043934,-400.0,0.00016438,2]
[361274759,1747413043943,-158.446461,0.00016438,2]
[361274760,1747413043952,-400.0,0.00016438,2]
[361274761,1747413043962,-1082.08,0.00016438,2]
[361274762,1747413043971,-400.0,0.00016438,2]
[361274763,1747413043981,-400.0,0.00016438,2]
[361274764,1747413043990,-400.0,0.00016438,2]
[361274765,1747413043999,-400.0,0.00016438,2]
[361274766,1747413044009,-400.0,0.00016438,2]
[361274767,1747413044019,-400.0,0.00016438,2]
[361274768,1747413044029,-480.96146944,0.00016438,2]
[361274769,1747413044038,-795.32,0.00016438,2]
[361274770,1747413044047,-576.83,0.00016438,2]
[361274771,1747413044056,-400.0,0.00016438,2]
[361274772,1747413044064,-119.04807936,0.00016438,2]
[361274773,1747413044083,-328.78192064,0.00016438,2]
[361274774,1747413044092,-151.0,0.00016438,2]
[361274775,1747413044102,-400.0,0.00016438,2]
[361274776,1747413044111,-400.0,0.00016438,2]
[361274777,1747413044120,-43.37515901,0.00016438,2]
[361274778,1747413045461,-251.84392001,0.00016428,2]
[361274779,1747413045471,-356.62484099,0.00016438,2]
[361274780,1747413045480,-400.0,0.00016438,2]
[361274781,1747413045490,-400.0,0.00016438,2]
[361274782,1747413045499,-477.7,0.00016438,2]
[361274783,1747413045508,-400.0,0.00016438,2]
[361274784,1747413045519,-492.28,0.00016438,2]
[361274785,1747413045529,-400.0,0.00016438,2]
[361274786,1747413045539,-400.0,0.00016438,2]
[361274787,1747413045548,-400.0,0.00016438,2]
[361274788,1747413045558,-644.88,0.00016438,2]
[361274789,1747413045567,-400.0,0.00016438,2]
[361274790,1747413045577,-400.0,0.00016438,2]
[361274791,1747413045586,-151.0,0.00016438,2]
[361274792,1747413045596,-151.0,0.00016438,2]
[361274793,1747413045605,-400.0,0.00016438,2]
[361274794,1747413045615,-400.0,0.00016438,2]
[361274795,1747413045624,-690.57,0.00016438,2]
[361274796,1747413045634,-784.98,0.00016438,2]
[361274797,1747413045643,-400.0,0.00016438,2]
[361274798,1747413045652,-562.2,0.00016438,2]
[361274799,1747413045661,-227.58771826,0.00016438,2]
[361274800,1747413045671,-400.0,0.00016438,2]
[361274801,1747413045680,-400.0,0.00016438,2]
[361274802,1747413045690,-580.47,0.00016438,2]
[361274803,1747413045699,-899.73,0.00016438,2]
[361274804,1747413045708,-317.80976208,0.00016438,2]
[361274805,1747413045717,-400.0,0.00016438,2]
[361274806,1747413045727,-400.0,0.00016438,2]
[361274807,1747413045736,-400.0,0.00016438,2]
[361274808,1747413045745,-400.0,0.00016438,2]
[361274809,1747413045755,-400.0,0.00016438,2]
[361274810,1747413045764,-400.0,0.00016438,2]
[361274811,1747413045773,-400.0,0.00016438,2]
[361274812,1747413045783,-400.0,0.00016438,2]
[361274813,1747413045792,-531.06,0.00016438,2]
[361274814,1747413045801,-400.0,0.00016438,2]
[361274815,1747413045811,-400.0,0.00016438,2]
[361274816,1747413045820,-400.0,0.00016438,2]
[361274817,1747413045829,-400.0,0.00016438,2]
[361274818,1747413045840,-680.93,0.00016438,2]
[361274819,1747413045850,-400.0,0.00016438,2]
[361274820,1747413045860,-400.0,0.00016438,2]
[361274821,1747413045869,-406.17,0.00016438,2]
[361274822,1747413045879,-634.42,0.00016438,2]
[361274823,1747413045891,-400.0,0.00016438,2]
[361274824,1747413045902,-400.0,0.00016438,2]
[361274825,1747413045913,-400.0,0.00016438,2]
[361274826,1747413045923,-400.0,0.00016438,2]
[361274827,1747413045933,-404.93,0.00016438,2]
[361274828,1747413045942,-464.73,0.00016438,2]
[361274829,1747413045951,-400.0,0.00016438,2]
[361274830,1747413045960,-400.0,0.00016438,2]
[361274831,1747413046220,-450.0,0.00016438,2]
[361274832,1747413046238,-936.4,0.00016438,2]
[361274833,1747413046248,-400.0,0.00016438,2]
[361274834,1747413046257,-400.0,0.00016438,2]
[361274835,1747413046267,-400.0,0.00016438,2]
[361274836,1747413046277,-151.0,0.00016438,2]
[361274837,1747413046286,-530.88,0.00016438,2]
[361274838,1747413046295,-400.0,0.00016438,2]
[361274839,1747413046304,-451.5102524,0.00016438,2]
[361274840,1747413046314,-400.0,0.00016438,2]
[361274841,1747413046323,-790.71,0.00016438,2]
[361274842,1747413046332,-400.0,0.00016438,2]
[361274843,1747413046342,-400.0,0.00016438,2]
[361274844,1747413046351,-400.0,0.00016438,2]
[361274845,1747413046361,-504.12,0.00016438,2]
[361274846,1747413046370,-400.0,0.00016438,2]
[361274847,1747413046379,-407.64,0.00016438,2]
[361274848,1747413046388,-400.0,0.00016438,2]
[361274849,1747413046398,-281.3419134,0.00016438,2]
[361274850,1747413046407,-400.0,0.00016438,2]
[361274851,1747413046416,-403.79,0.00016438,2]
[361274852,1747413046425,-400.0,0.00016438,2]
[361274853,1747413046434,-1115.9,0.00016438,2]
[361274854,1747413046444,-541.15854551,0.00016438,2]
[361274855,1747413046453,-840.49,0.00016438,2]
[361274856,1747413046462,-151.0,0.00016438,2]
[361274857,1747413046471,-414.07,0.00016438,2]
[361274858,1747413046481,-624.43,0.00016438,2]
[361274859,1747413046490,-400.0,0.00016438,2]
[361274860,1747413046500,-1331.43,0.00016438,2]
[361274861,1747413046510,-400.0,0.00016438,2]
[361274862,1747413046519,-400.0,0.00016438,2]
[361274863,1747413046529,-264.487471,0.00016438,2]
[361274864,1747413046538,-403.00669421,0.00016438,2]
[361274865,1747413046547,-400.0,0.00016438,2]
[361274866,1747413046556,-400.0,0.00016438,2]
[361274867,1747413046566,-1351.7,0.00016438,2]
[361274868,1747413046576,-1458.12,0.00016438,2]
[361274869,1747413046585,-400.0,0.00016438,2]
[361274870,1747413046595,-400.0,0.00016438,2]
[361274871,1747413046604,-990.59,0.00016438,2]
[361274872,1747413046613,-444.21,0.00016438,2]
[361274873,1747413046623,-400.0,0.00016438,2]
[361274874,1747413046632,-400.0,0.00016438,2]
[361274875,1747413046642,-400.0,0.00016438,2]
[361274876,1747413046651,-1167.41,0.00016438,2]
[361274877,1747413046660,-400.0,0.00016438,2]
[361274878,1747413046669,-407.57,0.00016438,2]
[361274879,1747413046678,-151.0,0.00016438,2]
[361274880,1747413046687,-271.38077958,0.00016438,2]
[361274881,1747413046697,-544.00789997,0.00016438,2]
[361274882,1747413046706,-543.92,0.00016438,2]
[361274883,1747413046715,-1750.65,0.00016438,2]
[361274884,1747413046724,-400.0,0.00016438,2]
[361274885,1747413046734,-151.0,0.00016438,2]
[361274886,1747413046744,-400.0,0.00016438,2]
[361274887,1747413046753,-400.0,0.00016438,2]
[361274888,1747413046762,-400.0,0.00016438,2]
[361274889,1747413046772,-400.0,0.00016438,2]
[361274890,1747413046781,-216.39811612,0.00016438,2]
[361274891,1747413046790,-400.0,0.00016438,2]
[361274892,1747413046800,-400.0,0.00016438,2]
[361274893,1747413046810,-400.0,0.00016438,2]
[361274894,1747413046819,-529.38,0.00016438,2]
[361274895,1747413046829,-1543.78,0.00016438,2]
[361274896,1747413046838,-958.0,0.00016438,2]
[361274897,1747413046847,-400.0,0.00016438,2]
[361274898,1747413046857,-428.98,0.00016438,2]
[361274899,1747413046866,-403.4,0.00016438,2]
[361274900,1747413046876,-255.71241792,0.00016438,2]
[361274901,1747413046885,-151.0,0.00016438,2]
[361274902,1747413046894,-151.0,0.00016438,2]
[361274903,1747413046904,-825.34,0.00016438,2]
[361274904,1747413046913,-400.0,0.00016438,2]
[361274905,1747413046922,-527.73,0.00016438,2]
[361274906,1747413046932,-407.73,0.00016438,2]
[361274907,1747413046941,-400.0,0.00016438,2]
[361274908,1747413046950,-400.0,0.00016438,2]
[361274909,1747413046960,-641.04,0.00016438,2]
[361274910,1747413046969,-400.0,0.00016438,2]
[361274911,1747413046978,-400.0,0.00016438,2]
[361274912,1747413046987,-400.0,0.00016438,2]
[361274913,1747413046997,-1012.13,0.00016438,2]
[361274914,1747413047007,-678.6,0.00016438,2]
[361274915,1747413047016,-621.91,0.00016438,2]
[361274916,1747413047025,-383.08721912,0.00016438,2]
[361274917,1747413047034,-400.0,0.00016438,2]
[361274918,1747413047043,-400.0,0.00016438,2]
[361274919,1747413047052,-400.0,0.00016438,2]
[361274920,1747413047061,-231.05029407,0.00016438,2]
[361274921,1747413047070,-400.0,0.00016438,2]
[361274922,1747413047079,-1117.9,0.00016438,2]
[361274923,1747413047088,-400.0,0.00016438,2]
[361274924,1747413047097,-400.0,0.00016438,2]
[361274925,1747413047106,-400.0,0.00016438,2]
[361274926,1747413047116,-926.37,0.00016438,2]
[361274927,1747413047125,-543.14,0.00016438,2]
[361274928,1747413047135,-400.0,0.00016438,2]
[361274929,1747413047144,-400.0,0.00016438,2]
[361274930,1747413047155,-506.68,0.00016438,2]
[361274931,1747413047166,-400.0,0.00016438,2]
[361274932,1747413047175,-400.0,0.00016438,2]
[361274933,1747413047184,-573.56,0.00016438,2]
[361274934,1747413047195,-400.0,0.00016438,2]
[361274935,1747413047205,-400.0,0.00016438,2]
[361274936,1747413047215,-1184.14,0.00016438,2]
[361274937,1747413047225,-656.45,0.00016438,2]
[361274938,1747413047236,-400.0,0.00016438,2]
[361274939,1747413047246,-400.0,0.00016438,2]
[361274940,1747413047257,-400.0,0.00016438,2]
[361274941,1747413047268,-769.51,0.00016438,2]
[361274942,1747413047278,-400.0,0.00016438,2]
[361274943,1747413047287,-501.22,0.00016438,2]
[361274944,1747413047299,-1597.8,0.00016438,2]
[361274945,1747413047308,-582.1,0.00016438,2]
[361274946,1747413047317,-400.0,0.00016438,2]
[361274947,1747413047326,-912.57,0.00016438,2]
[361274948,1747413047336,-762.9,0.00016438,2]
[361274949,1747413047345,-400.0,0.00016438,2]
[361274950,1747413047355,-400.0,0.00016438,2]
[361274951,1747413047366,-400.0,0.00016438,2]
[361274952,1747413047375,-547.57,0.00016438,2]
[361274953,1747413047385,-685.02,0.00016438,2]
[361274954,1747413047395,-400.0,0.00016438,2]
[361274955,1747413047405,-400.0,0.00016438,2]
[361274956,1747413047414,-400.0,0.00016438,2]
[361274957,1747413047424,-592.11,0.00016438,2]
[361274958,1747413047434,-400.0,0.00016438,2]
[361274959,1747413047443,-589.63,0.00016438,2]
[361274960,1747413047453,-400.0,0.00016438,2]
[361274961,1747413047462,-400.0,0.00016438,2]
[361274962,1747413047471,-400.0,0.00016438,2]
[361274963,1747413047480,-400.0,0.00016438,2]
[361274964,1747413047489,-400.0,0.00016438,2]
[361274965,1747413047499,-407.67,0.00016438,2]
[361274966,1747413047508,-400.0,0.00016438,2]
[361274967,1747413047518,-400.0,0.00016438,2]
[361274968,1747413047528,-400.0,0.00016438,2]
[361274969,1747413047538,-400.0,0.00016438,2]
[361274970,1747413047547,-603.93,0.00016438,2]
[361274971,1747413047558,-400.0,0.00016438,2]
[361274972,1747413047567,-400.0,0.00016438,2]
[361274973,1747413047577,-850.39,0.00016438,2]
[361274974,1747413047587,-400.0,0.00016438,2]
[361274975,1747413047597,-400.0,0.00016438,2]
[361274976,1747413047606,-465.8,0.00016438,2]
[361274977,1747413047616,-1347.65,0.00016438,2]
[361274978,1747413047626,-1186.14,0.00016438,2]
[361274979,1747413047635,-400.0,0.00016438,2]
[361274980,1747413047644,-273.74619415,0.00016438,2]
[361274981,1747413047686,-126.25380585,0.00016438,2]
[361274982,1747413047696,-419.39,0.00016438,2]
[361274983,1747413047706,-369.15619415,0.00016438,2]
[361274984,1747413047717,-444.51380585,0.00016438,2]
[361274985,1747413047727,-494.3,0.00016438,2]
[361274986,1747413047735,-400.0,0.00016438,2]
[361274987,1747413047744,-960.66,0.00016438,2]
[361274988,1747413047753,-595.78,0.00016438,2]
[361274989,1747413047763,-1056.43,0.00016438,2]
[361274990,1747413047774,-400.0,0.00016438,2]
[361274991,1747413047784,-400.0,0.00016438,2]
[361274992,1747413047793,-400.0,0.00016438,2]
[361274993,1747413047804,-509.79,0.00016438,2]
[361274994,1747413047814,-400.0,0.00016438,2]
[361274995,1747413047823,-400.0,0.00016438,2]